fUST/lending_fUST_20240216
["ID","MTS","AMOUNT","RATE_DAILY","PERIOD"]
[314186780,1708054246078,-500.0,0.00022191,2]
[314186782,1708054246088,-500.0,0.00022191,2]
[314186784,1708054246098,-500.0,0.00022191,2]
[314186786,1708054246107,-1574.67,0.00022191,2]
[314186788,1708054246115,-500.0,0.00022191,2]
[314186790,1708054246124,-500.0,0.00022191,2]
[314186793,1708054246134,-500.0,0.00022191,2]
[314186795,1708054246143,-500.0,0.00022191,2]
[314186797,1708054246152,-500.0,0.00022191,2]
[314186799,1708054246162,-1693.02,0.00022191,2]
[314186801,1708054246171,-500.0,0.00022191,2]
[314186803,1708054246180,-1674.29,0.00022191,2]
[314186812,1708054246260,-526.51649215,0.00022191,2]
[314186814,1708054246269,-500.0,0.00022191,2]
[314186817,1708054246278,-500.0,0.00022191,2]
[314186818,1708054246288,-504.17341533,0.00022191,2]
[314186821,1708054246298,-500.0,0.00022191,2]
[314186823,1708054246307,-500.0,0.00022191,2]
[314186825,1708054246316,-569.14,0.00022191,2]
[314186827,1708054246325,-373.61471554,0.00022191,2]
[314186829,1708054246334,-500.0,0.00022191,2]
[314186831,1708054246344,-894.49,0.00022191,2]
[314186832,1708054246353,-500.0,0.00022191,2]
[314186834,1708054246362,-500.0,0.00022191,2]
[314186836,1708054246371,-500.0,0.00022191,2]
[314186838,1708054246381,-500.0,0.00022191,2]
[314186841,1708054246393,-818.02,0.00022191,2]
[314186843,1708054246402,-625.33,0.00022191,2]
[314186845,1708054246412,-339.98127792,0.00022191,2]
[314186847,1708054246422,-500.0,0.00022191,2]
[314186849,1708054246431,-500.0,0.00022191,2]
[314186850,1708054246440,-644.52,0.00022191,2]
[314186853,1708054246449,-578.5150455,0.00022191,2]
[314186855,1708054246458,-1876.77,0.00022191,2]
[314186857,1708054246469,-500.0,0.00022191,2]
[314186859,1708054246478,-500.0,0.00022191,2]
[314186861,1708054246488,-479.12461434,0.00022191,2]
[314186863,1708054246498,-500.0,0.00022191,2]
[314186865,1708054246506,-645.75,0.00022191,2]
[314186867,1708054246516,-500.0,0.00022191,2]
[314186869,1708054246525,-500.0,0.00022191,2]
[314186871,1708054246534,-500.0,0.00022191,2]
[314186873,1708054246543,-500.0,0.00022191,2]
[314186875,1708054246552,-500.0,0.00022191,2]
[314186877,1708054246562,-467.44471957,0.00022191,2]
[314186879,1708054246571,-528.81669082,0.00022191,2]
[314186880,1708054246580,-500.0,0.00022191,2]
[314186882,1708054246589,-500.0,0.00022191,2]
[314186884,1708054246598,-500.0,0.00022191,2]
[314186887,1708054246608,-503.89435291,0.00022191,2]
[314186888,1708054246617,-507.5,0.00022191,2]
[314186890,1708054246626,-728.18,0.00022191,2]
[314186892,1708054246635,-1036.45,0.00022191,2]
[314186894,1708054246644,-500.0,0.00022191,2]
[314186896,1708054246654,-500.0,0.00022191,2]
[314186898,1708054246663,-800.26,0.00022191,2]
[314186900,1708054246672,-500.0,0.00022191,2]
[314186903,1708054246681,-639.33,0.00022191,2]
[314186905,1708054246690,-500.0,0.00022191,2]
[314186906,1708054246700,-500.0,0.00022191,2]
[314186908,1708054246709,-715.64,0.00022191,2]
[314186910,1708054246718,-500.0,0.00022191,2]
[314186912,1708054246727,-503.65655524,0.00022191,2]
[314186914,1708054246737,-500.0,0.00022191,2]
[314186917,1708054246748,-889.66,0.00022191,2]
[314186919,1708054246756,-500.0,0.00022191,2]
[314186921,1708054246765,-588.41,0.00022191,2]
[314186923,1708054246774,-500.0,0.00022191,2]
[314186925,1708054246783,-504.21440813,0.00022191,2]
[314186927,1708054246792,-500.0,0.00022191,2]
[314186928,1708054246801,-250.0,0.00022191,2]
[314186930,1708054246809,-500.0,0.00022191,2]
[314186932,1708054246819,-500.0,0.00022191,2]
[314186934,1708054246827,-500.0,0.00022191,2]
[314186936,1708054246836,-500.0,0.00022191,2]
[314186938,1708054246845,-500.0,0.00022191,2]
[314186940,1708054246854,-500.0,0.00022191,2]
[314186943,1708054246864,-500.0,0.00022191,2]
[314186945,1708054246873,-2776.0,0.00022191,2]
[314186946,1708054246882,-504.97132647,0.00022191,2]
[314186948,1708054246891,-500.0,0.00022191,2]
[314186950,1708054246900,-718.01,0.00022191,2]
[314186953,1708054246910,-9937.14,0.00022191,2]
[314186955,1708054246919,-500.0,0.00022191,2]
[314186957,1708054246928,-3484.33,0.00022191,2]
[314186959,1708054246937,-1000.0,0.00022191,2]
[314186961,1708054246946,-1127.49,0.00022191,2]
[314186963,1708054246955,-500.0,0.00022191,2]
[314186965,1708054246963,-241.62581266,0.00022191,2]
[314186966,1708054246972,-500.0,0.00022191,2]
[314186968,1708054246981,-1972.62,0.00022191,2]
[314186970,1708054246990,-3485.39,0.00022191,2]
[314186972,1708054247000,-500.0,0.00022191,2]
[314186974,1708054247009,-500.0,0.00022191,2]
[314186976,1708054247018,-500.0,0.00022191,2]
[314186978,1708054247027,-500.0,0.00022191,2]
[314186980,1708054247036,-468.51717466,0.00022191,2]
[314186982,1708054247045,-503.19358489,0.00022191,2]
[314186984,1708054247054,-1948.69,0.00022191,2]
[314186986,1708054247063,-500.0,0.00022191,2]
[314186988,1708054247072,-1682.2,0.00022191,2]
[314186990,1708054247081,-500.0,0.00022191,2]
[314186992,1708054247089,-500.0,0.00022191,2]
[314186994,1708054247098,-500.0,0.00022191,2]
[314186996,1708054247107,-500.0,0.00022191,2]
[314186997,1708054247116,-500.0,0.00022191,2]
[314186999,1708054247126,-500.0,0.00022191,2]
[314187002,1708054247135,-500.0,0.00022191,2]
[314187004,1708054247145,-514.17147117,0.00022191,2]
[314187006,1708054247154,-500.0,0.00022191,2]
[314187007,1708054247163,-500.0,0.00022191,2]
[314187009,1708054247173,-899.34,0.00022191,2]
[314187012,1708054247183,-2527.09,0.00022191,2]
[314187013,1708054247192,-510.80231735,0.00022191,2]
[314187015,1708054247200,-1647.54,0.00022191,2]
[314187017,1708054247210,-500.0,0.00022191,2]
[314187019,1708054247221,-503.00349146,0.00022191,2]
[314187021,1708054247230,-16248.91,0.00022191,2]
[314187023,1708054247239,-500.0,0.00022191,2]
[314187025,1708054247249,-500.0,0.00022191,2]
[314187027,1708054247259,-1219.32,0.00022191,2]
[314187029,1708054247270,-500.0,0.00022191,2]
[314187031,1708054247279,-2910.33,0.00022191,2]
[314187033,1708054247288,-500.0,0.00022191,2]
[314187035,1708054247298,-2603.98,0.00022191,2]
[314187037,1708054247307,-504.02859752,0.00022191,2]
[314187039,1708054247317,-500.0,0.00022191,30]
[314187041,1708054247326,-18667.13,0.00022191,2]
[314187043,1708054247335,-852.11,0.00022191,2]
[314187045,1708054247344,-502.62782781,0.00022191,2]
[314187047,1708054247353,-508.63880587,0.00022191,2]
[314187049,1708054247363,-500.0,0.00022191,2]
[314187051,1708054247372,-500.0,0.00022191,2]
[314187053,1708054247383,-504.30172405,0.00022191,2]
[314187054,1708054247395,-553.01370038,0.00022191,2]
[314187056,1708054247406,-500.0,0.00022191,2]
[314187058,1708054247415,-500.0,0.00022191,2]
[314187060,1708054247424,-1591.21,0.00022191,2]
[314187062,1708054247434,-15067.1,0.00022191,2]
[314187064,1708054247443,-3743.66,0.00022191,2]
[314187066,1708054247452,-500.0,0.00022191,2]
[314187068,1708054247462,-500.0,0.00022191,2]
[314187070,1708054247472,-505.50886859,0.00022191,2]
[314187072,1708054247481,-2066.91,0.00022191,2]
[314187074,1708054247490,-1505.22,0.00022191,2]
[314187076,1708054247499,-500.0,0.00022191,2]
[314187078,1708054247509,-3281.48,0.00022191,2]
[314187080,1708054247518,-500.0,0.00022191,2]
[314187082,1708054247527,-2563.61,0.00022191,2]
[314187084,1708054247536,-500.0,0.00022191,2]
[314187085,1708054247545,-500.0,0.00022191,2]
[314187086,1708054247554,-480.011166,0.00022191,2]
[314187087,1708054247563,-3197.98,0.00022191,2]
[314187088,1708054247572,-332.94825931,0.00022191,2]
[314187089,1708054247580,-558.77,0.00022191,2]
[314187090,1708054247589,-500.0,0.00022191,2]
[314187091,1708054247598,-23026.58,0.00022191,2]
[314187092,1708054247608,-508.64889599,0.00022191,2]
[314187093,1708054247617,-15412.25,0.00022191,2]
[314187094,1708054247626,-2019.41,0.00022191,2]
[314187095,1708054247634,-501.46931113,0.00022191,2]
[314187096,1708054247643,-500.0,0.00022191,2]
[314187097,1708054247652,-500.0,0.00022191,2]
[314187098,1708054247661,-190.02989101,0.00022191,2]
[314187099,1708054247670,-500.0,0.00022191,2]
[314187100,1708054247679,-9252.95,0.00022191,2]
[314187101,1708054247688,-285.00901449,0.00022208,2]
[314187102,1708054247697,-1000.0,0.00022222,2]
[314187104,1708054247706,-1000.0,0.00022243,2]
[314187105,1708054247715,-1000.0,0.0002227,2]
[314187108,1708054247724,-1000.0,0.00022286,2]
[314187110,1708054247733,-1000.0,0.00022327,2]
[314187112,1708054247743,-1614.05962954,0.00022378,8]
[314187113,1708054247752,-1000.0,0.00022419,2]
[314187116,1708054247761,-1000.0,0.00022422,2]
[314187118,1708054247771,-1000.0,0.00022425,2]
[314187127,1708054247846,-1000.0,0.00022431,2]
[314187129,1708054247856,-5282.99017836,0.00022463,2]
[314187131,1708054247865,-3948.71,0.00022464,2]
[314187133,1708054247874,-3948.71,0.00022464,2]
[314187135,1708054247884,-3948.71,0.00022464,2]
[314187137,1708054247892,-3948.71,0.00022464,2]
[314187139,1708054247903,-3948.71,0.00022464,2]
[314187141,1708054247914,-3948.71,0.00022464,2]
[314187143,1708054247924,-3948.77372375,0.00022464,2]
[314187145,1708054247934,-1000.0,0.00022464,2]
[314187147,1708054247943,-607.2380826,0.00022465,2]
[314187149,1708054247952,-500.0,0.00022465,2]
[314187151,1708054247961,-500.0,0.00022465,2]
[314187153,1708054247971,-500.0,0.00022465,2]
[314187155,1708054247980,-500.0,0.00022465,2]
[314187157,1708054247990,-151.20673677,0.00022465,2]
[314187159,1708054248000,-534.04189511,0.00022465,2]
[314187160,1708054248009,-500.0,0.00022465,2]
[314187161,1708054248019,-547.44,0.00022465,2]
[314187162,1708054248028,-500.0,0.00022465,2]
[314187163,1708054248038,-500.0,0.00022465,2]
[314187164,1708054248048,-1221.25,0.00022465,2]
[314187165,1708054248058,-500.0,0.00022465,2]
[314187166,1708054248068,-665.87,0.00022465,2]
[314187167,1708054248078,-500.0,0.00022465,2]
[314187168,1708054248087,-500.0,0.00022465,2]
[314187169,1708054248096,-500.0,0.00022465,2]
[314187170,1708054248105,-500.0,0.00022465,2]
[314187171,1708054248115,-500.0,0.00022465,2]
[314187172,1708054248124,-500.0,0.00022465,2]
[314187173,1708054248134,-506.01,0.00022465,2]
[314187174,1708054248143,-500.0,0.00022465,2]
[314187177,1708054248154,-500.0,0.00022465,2]
[314187178,1708054248164,-500.0,0.00022465,2]
[314187180,1708054248173,-500.0,0.00022465,2]
[314187182,1708054248182,-500.0,0.00022465,2]
[314187184,1708054248192,-1574.67,0.00022465,2]
[314187186,1708054248201,-185.19116336,0.00022465,2]
[314187189,1708054248211,-500.0,0.00022465,2]
[314187191,1708054248221,-500.0,0.00022465,2]
[314187193,1708054248230,-500.0,0.00022465,2]
[314187194,1708054248239,-500.0,0.00022465,2]
[314187196,1708054248250,-1693.02,0.00022465,2]
[314187198,1708054248259,-307.35705665,0.00022465,2]
[314187200,1708054248267,-1674.29,0.00022465,2]
[314187202,1708054248276,-500.0,0.00022465,2]
[314187204,1708054248285,-505.06050366,0.00022465,2]
[314187206,1708054248294,-500.0,0.00022465,2]
[314187208,1708054248302,-500.0,0.00022465,2]
[314187210,1708054248311,-569.14,0.00022465,2]
[314187212,1708054248321,-500.0,0.00022465,2]
[314187214,1708054248330,-894.49,0.00022465,2]
[314187216,1708054248339,-500.0,0.00022465,2]
[314187218,1708054248348,-500.0,0.00022465,2]
[314187220,1708054248357,-500.0,0.00022465,2]
[314187222,1708054248366,-500.0,0.00022465,2]
[314187224,1708054248375,-818.02,0.00022465,2]
[314187226,1708054248385,-625.33,0.00022465,2]
[314187228,1708054248397,-268.12799793,0.00022465,2]
[314187230,1708054248406,-500.0,0.00022465,2]
[314187232,1708054248415,-644.52,0.00022465,2]
[314187234,1708054248425,-1876.77,0.00022465,2]
[314187235,1708054248434,-519.71443797,0.00022465,2]
[314187237,1708054248443,-500.0,0.00022465,2]
[314187238,1708054248452,-500.0,0.00022465,2]
[314187240,1708054248461,-645.75,0.00022465,2]
[314187242,1708054248471,-500.0,0.00022465,2]
[314187244,1708054248480,-500.0,0.00022465,2]
[314187246,1708054248489,-500.0,0.00022465,2]
[314187248,1708054248500,-500.0,0.00022465,2]
[314187250,1708054248509,-500.0,0.00022465,2]
[314187252,1708054248518,-500.0,0.00022465,2]
[314187254,1708054248528,-590.46145876,0.00022465,2]
[314187256,1708054248537,-461.51400356,0.00022465,2]
[314187258,1708054248546,-507.5,0.00022465,2]
[314187260,1708054248555,-728.18,0.00022465,2]
[314187262,1708054248565,-1036.45,0.00022465,2]
[314187264,1708054248574,-500.0,0.00022465,2]
[314187266,1708054248583,-500.0,0.00022465,2]
[314187268,1708054248592,-800.26,0.00022465,2]
[314187270,1708054248601,-504.82729257,0.00022465,2]
[314187272,1708054248610,-639.33,0.00022465,2]
[314187274,1708054248620,-203.3413703,0.00022465,2]
[314187276,1708054248629,-504.87586594,0.00022465,2]
[314187278,1708054248638,-715.64,0.00022465,2]
[314187280,1708054248647,-500.0,0.00022465,2]
[314187282,1708054248656,-500.0,0.00022465,2]
[314187284,1708054248665,-889.66,0.00022465,2]
[314187286,1708054248674,-500.0,0.00022465,2]
[314187288,1708054248683,-588.41,0.00022465,2]
[314187290,1708054248692,-534.11514124,0.00022465,2]
[314187291,1708054248701,-500.0,0.00022465,2]
[314187293,1708054248710,-500.0,0.00022465,2]
[314187295,1708054248719,-500.0,0.00022465,2]
[314187297,1708054248728,-500.0,0.00022465,2]
[314187299,1708054248737,-500.0,0.00022465,2]
[314187301,1708054248747,-500.0,0.00022465,2]
[314187303,1708054248757,-291.48,0.00022465,2]
[314187305,1708054248766,-2776.0,0.00022465,2]
[314187307,1708054248776,-500.0,0.00022465,2]
[314187309,1708054248786,-718.01,0.00022465,2]
[314187311,1708054248796,-9937.14,0.00022465,2]
[314187313,1708054248805,-3484.33,0.00022465,2]
[314187315,1708054248814,-1000.0,0.00022465,2]
[314187317,1708054248824,-1127.49,0.00022465,2]
[314187319,1708054248833,-500.0,0.00022465,2]
[314187321,1708054248842,-500.0,0.00022465,2]
[314187323,1708054248851,-1972.62,0.00022465,2]
[314187325,1708054248860,-3485.39,0.00022465,2]
[314187327,1708054248869,-500.0,0.00022465,2]
[314187328,1708054248878,-237.4808356,0.00022465,2]
[314187330,1708054248887,-344.38303373,0.00022465,2]
[314187332,1708054248897,-500.0,0.00022465,2]
[314187334,1708054248907,-1948.69,0.00022465,2]
[314187336,1708054248916,-564.59138388,0.00022465,2]
[314187339,1708054248926,-1682.2,0.00022465,2]
[314187340,1708054248935,-500.0,0.00022465,2]
[314187342,1708054248945,-500.0,0.00022465,2]
[314187344,1708054248954,-616.22470133,0.00022465,2]
[314187346,1708054248964,-500.0,0.00022465,2]
[314187348,1708054248973,-507.44634738,0.00022465,2]
[314187350,1708054248982,-596.5,0.00022465,2]
[314187352,1708054248990,-597.76151984,0.00022465,2]
[314187354,1708054249001,-500.0,0.00022465,2]
[314187356,1708054249010,-500.0,0.00022465,2]
[314187358,1708054249020,-899.34,0.00022465,2]
[314187360,1708054249029,-2527.09,0.00022465,2]
[314187362,1708054249038,-1647.54,0.00022465,2]
[314187364,1708054249046,-500.0,0.00022465,2]
[314187366,1708054249056,-16248.91,0.00022465,2]
[314187368,1708054249065,-500.0,0.00022465,2]
[314187370,1708054249074,-510.66602946,0.00022465,2]
[314187372,1708054249083,-1219.32,0.00022465,2]
[314187374,1708054249092,-500.0,0.00022465,2]
[314187376,1708054249101,-2910.33,0.00022465,2]
[314187378,1708054249110,-500.0,0.00022465,2]
[314187380,1708054249119,-2603.98,0.00022465,2]
[314187382,1708054249129,-500.0,0.00022465,30]
[314187384,1708054249138,-18667.13,0.00022465,2]
[314187386,1708054249147,-852.11,0.00022465,2]
[314187388,1708054249156,-506.2700811,0.00022465,2]
[314187390,1708054249165,-500.0,0.00022465,2]
[314187392,1708054249174,-500.0,0.00022465,2]
[314187393,1708054249183,-283.64291056,0.00022465,2]
[314187395,1708054249192,-1591.21,0.00022465,2]
[314187397,1708054249201,-15067.1,0.00022465,2]
[314187399,1708054249210,-3743.66,0.00022465,2]
[314187401,1708054249219,-500.0,0.00022465,2]
[314187403,1708054249229,-2066.91,0.00022465,2]
[314187405,1708054249238,-1505.22,0.00022465,2]
[314187407,1708054249247,-500.0,0.00022465,2]
[314187416,1708054249317,-3281.48,0.00022465,2]
[314187418,1708054249327,-500.0,0.00022465,2]
[314187420,1708054249337,-2563.61,0.00022465,2]
[314187421,1708054249346,-500.0,0.00022465,2]
[314187423,1708054249355,-3197.98,0.00022465,2]
[314187425,1708054249365,-558.77,0.00022465,2]
[314187427,1708054249374,-500.0,0.00022465,2]
[314187429,1708054249384,-23026.58,0.00022465,2]
[314187431,1708054249398,-15412.25,0.00022465,2]
[314187434,1708054249408,-2019.41,0.00022465,2]
[314187435,1708054249418,-500.0,0.00022465,2]
[314187437,1708054249428,-500.0,0.00022465,2]
[314187439,1708054249437,-500.0,0.00022465,2]
[314187441,1708054249447,-9252.95,0.00022465,2]
[314187443,1708054249456,-1000.0,0.00022476,2]
[314187445,1708054249467,-1000.0,0.00022486,2]
[314187447,1708054249476,-1000.0,0.00022539,2]
[314187449,1708054249484,-1000.0,0.0002254,2]
[314187451,1708054249495,-1000.0,0.00022567,2]
[314187453,1708054249504,-1000.0,0.00022601,2]
[314187455,1708054249515,-1000.0,0.00022607,2]
[314187457,1708054249524,-476.41385048,0.0002265,2]
[314187459,1708054249534,-300.0,0.00022659,2]
[314187461,1708054249543,-1000.0,0.00022659,2]
[314187463,1708054249552,-2003.01791,0.000227,2]
[314187465,1708054249562,-287.1515,0.000227,2]
[314187467,1708054249571,-500.0,0.00022738,2]
[314187469,1708054249580,-500.0,0.00022738,2]
[314187471,1708054249588,-441.08884816,0.00022738,2]
[314187473,1708054249597,-500.0,0.00022738,2]
[314187475,1708054249607,-480.73736033,0.00022738,2]
[314187477,1708054249615,-500.0,0.00022738,2]
[314187479,1708054249624,-500.0,0.00022738,2]
[314187481,1708054249634,-500.0,0.00022738,2]
[314187483,1708054249643,-500.0,0.00022738,2]
[314187485,1708054249652,-500.0,0.00022738,2]
[314187487,1708054249661,-500.0,0.00022738,2]
[314187489,1708054249670,-176.06625539,0.00022738,2]
[314187491,1708054249680,-500.0,0.00022738,2]
[314187493,1708054249689,-500.0,0.00022738,2]
[314187495,1708054249698,-348.61662608,0.00022738,2]
[314187497,1708054249707,-500.0,0.00022738,2]
[314187499,1708054249716,-500.0,0.00022738,2]
[314187500,1708054249726,-500.0,0.00022738,2]
[314187503,1708054249735,-500.0,0.00022738,2]
[314187504,1708054249745,-500.0,0.00022738,2]
[314187506,1708054249755,-500.0,0.00022738,2]
[314187508,1708054249764,-612.62385569,0.00022738,2]
[314187510,1708054249773,-186.51615223,0.00022738,2]
[314187512,1708054249783,-459.57973671,0.00022738,2]
[314187514,1708054249792,-500.0,0.00022739,2]
[314187516,1708054249801,-500.0,0.00022739,2]
[314187518,1708054249810,-500.0,0.00022739,2]
[314187520,1708054249819,-500.0,0.00022739,2]
[314187522,1708054249828,-547.44,0.00022739,2]
[314187524,1708054249837,-500.0,0.00022739,2]
[314187526,1708054249846,-500.0,0.00022739,2]
[314187528,1708054249855,-1221.25,0.00022739,2]
[314187530,1708054249864,-500.0,0.00022739,2]
[314187532,1708054249873,-665.87,0.00022739,2]
[314187534,1708054249883,-500.0,0.00022739,2]
[314187536,1708054249892,-500.0,0.00022739,2]
[314187538,1708054249901,-500.0,0.00022739,2]
[314187540,1708054249910,-499.01840075,0.00022739,2]
[314187542,1708054249918,-500.0,0.00022739,2]
[314187544,1708054249927,-500.0,0.00022739,2]
[314187546,1708054249937,-506.01,0.00022739,2]
[314187547,1708054249946,-500.0,0.00022739,2]
[314187549,1708054249955,-500.0,0.00022739,2]
[314187551,1708054249964,-500.0,0.00022739,2]
[314187554,1708054249974,-500.0,0.00022739,2]
[314187555,1708054249983,-577.8821623,0.00022739,2]
[314187557,1708054249992,-1574.67,0.00022739,2]
[314187559,1708054250002,-500.0,0.00022739,2]
[314187561,1708054250011,-500.0,0.00022739,2]
[314187564,1708054250021,-500.0,0.00022739,2]
[314187566,1708054250031,-472.38528981,0.00022739,2]
[314187568,1708054250040,-1693.02,0.00022739,2]
[314187570,1708054250051,-1674.29,0.00022739,2]
[314187572,1708054250060,-500.0,0.00022739,2]
[314187574,1708054250070,-500.0,0.00022739,2]
[314187575,1708054250079,-500.0,0.00022739,2]
[314187578,1708054250088,-569.14,0.00022739,2]
[314187579,1708054250098,-500.0,0.00022739,2]
[314187581,1708054250107,-894.49,0.00022739,2]
[314187583,1708054250117,-505.56234275,0.00022739,2]
[314187586,1708054250127,-591.51856003,0.00022739,2]
[314187587,1708054250137,-500.0,0.00022739,2]
[314187589,1708054250148,-500.0,0.00022739,2]
[314187591,1708054250157,-818.02,0.00022739,2]
[314187593,1708054250166,-625.33,0.00022739,2]
[314187595,1708054250176,-500.0,0.00022739,2]
[314187597,1708054250186,-644.52,0.00022739,2]
[314187599,1708054250195,-1876.77,0.00022739,2]
[314187601,1708054250204,-502.30319945,0.00022739,2]
[314187603,1708054250214,-500.0,0.00022739,2]
[314187605,1708054250223,-645.75,0.00022739,2]
[314187607,1708054250232,-567.54680685,0.00022739,2]
[314187609,1708054250242,-500.0,0.00022739,2]
[314187611,1708054250251,-500.0,0.00022739,2]
[314187613,1708054250261,-500.0,0.00022739,2]
[314187615,1708054250270,-500.0,0.00022739,2]
[314187617,1708054250280,-162.94008402,0.00022739,2]
[314187619,1708054250289,-507.5,0.00022739,2]
[314187620,1708054250298,-728.18,0.00022739,2]
[314187623,1708054250309,-1036.45,0.00022739,2]
[314187624,1708054250319,-500.0,0.00022739,2]
[314187627,1708054250330,-500.0,0.00022739,2]
[314187628,1708054250340,-800.26,0.00022739,2]
[314187630,1708054250350,-639.33,0.00022739,2]
[314187632,1708054250359,-715.64,0.00022739,2]
[314187634,1708054250370,-524.22050564,0.00022739,2]
[314187636,1708054250380,-435.76239484,0.00022739,2]
[314187639,1708054250394,-889.66,0.00022739,2]
[314187640,1708054250403,-500.0,0.00022739,2]
[314187642,1708054250413,-588.41,0.00022739,2]
[314187644,1708054250423,-500.0,0.00022739,2]
[314187646,1708054250434,-500.0,0.00022739,2]
[314187648,1708054250445,-352.75819929,0.00022739,2]
[314187650,1708054250455,-235.16,0.00022739,2]
[314187652,1708054250464,-500.0,0.00022739,2]
[314187654,1708054250475,-500.0,0.00022739,2]
[314187656,1708054250485,-2776.0,0.00022739,2]
[314187658,1708054250496,-500.0,0.00022739,2]
[314187660,1708054250506,-718.01,0.00022739,2]
[314187662,1708054250515,-9937.14,0.00022739,2]
[314187664,1708054250524,-3484.33,0.00022739,2]
[314187666,1708054250534,-1000.0,0.00022739,2]
[314187668,1708054250544,-1127.49,0.00022739,2]
[314187670,1708054250553,-500.0,0.00022739,2]
[314187672,1708054250562,-500.0,0.00022739,2]
[314187674,1708054250572,-1972.62,0.00022739,2]
[314187676,1708054250581,-3485.39,0.00022739,2]
[314187678,1708054250590,-500.0,0.00022739,2]
[314187680,1708054250600,-500.0,0.00022739,2]
[314187682,1708054250610,-1948.69,0.00022739,2]
[314187684,1708054250619,-1682.2,0.00022739,2]
[314187687,1708054250629,-500.0,0.00022739,2]
[314187688,1708054250638,-500.0,0.00022739,2]
[314187697,1708054250709,-500.0,0.00022739,2]
[314187699,1708054250719,-500.0,0.00022739,2]
[314187701,1708054250729,-500.0,0.00022739,2]
[314187703,1708054250739,-899.34,0.00022739,2]
[314187705,1708054250750,-2527.09,0.00022739,2]
[314187707,1708054250759,-1647.54,0.00022739,2]
[314187709,1708054250768,-500.0,0.00022739,2]
[314187711,1708054250778,-16248.91,0.00022739,2]
[314187713,1708054250787,-1219.32,0.00022739,2]
[314187715,1708054250796,-500.0,0.00022739,2]
[314187718,1708054250812,-2910.33,0.00022739,2]
[314187720,1708054250827,-549.88849898,0.00022739,2]
[314187722,1708054250838,-2603.98,0.00022739,2]
[314187724,1708054250849,-500.0,0.00022739,30]
[314187726,1708054250858,-18667.13,0.00022739,2]
[314187729,1708054250869,-852.11,0.00022739,2]
[314187731,1708054250879,-500.0,0.00022739,2]
[314187733,1708054250889,-526.86924585,0.00022739,2]
[314187735,1708054250900,-1591.21,0.00022739,2]
[314187737,1708054250910,-15067.1,0.00022739,2]
[314187739,1708054250920,-3743.66,0.00022739,2]
[314187741,1708054250930,-500.0,0.00022739,2]
[314187743,1708054250940,-2066.91,0.00022739,2]
[314187745,1708054250951,-1505.22,0.00022739,2]
[314187747,1708054250962,-500.0,0.00022739,2]
[314187749,1708054250973,-3281.48,0.00022739,2]
[314187751,1708054250982,-500.0,0.00022739,2]
[314187753,1708054250993,-2563.61,0.00022739,2]
[314187756,1708054251004,-500.0,0.00022739,2]
[314187758,1708054251014,-3197.98,0.00022739,2]
[314187760,1708054251024,-558.77,0.00022739,2]
[314187762,1708054251034,-500.0,0.00022739,2]
[314187763,1708054251045,-23026.58,0.00022739,2]
[314187765,1708054251056,-15412.25,0.00022739,2]